bitfinex-derivatives/quotes_ETHF0:USTF0_20250102
["timestamp","ask_amount","ask_price","bid_price","bid_amount"]
[1735827346420,0.72291,3461.9,3461.2,1.48421]
[1735827346421,0.28921,3461.3,3461.2,1.48421]
[1735827346625,3.2078,3461.6,3461.0,3.2078]
[1735827346829,0.28922,3461.3,3461.2,0.28921]
[1735827347630,0.2892,3461.4,3461.3,0.2892]
[1735827347830,3.49698,3461.6,3461.5,0.28919]
[1735827348229,3.49698,3461.6,3461.1,0.988]
[1735827348230,3.2078,3461.6,3461.1,0.988]
[1735827348431,0.2892,3461.5,3461.4,0.28919]
[1735827349137,3.2078,3461.6,3461.2,1.195]
[1735827349827,0.28923,3461.1,3461.0,0.28922]
[1735827351332,0.28926,3460.8,3460.7,0.28925]
[1735827351835,0.28926,3460.8,3460.5,3.2078]
[1735827351836,0.28927,3460.6,3460.5,3.2078]
[1735827352034,0.28928,3460.4,3460.3,0.28929]
[1735827352229,0.28928,3460.5,3460.4,0.28927]
[1735827352730,0.2893,3460.3,3460.2,0.28929]
[1735827353629,0.28928,3460.5,3460.4,0.28928]
[1735827354531,3.2078,3460.6,3460.1,1.195]
[1735827354532,3.2078,3460.6,3460.5,0.28927]
[1735827355036,3.2078,3461.3,3460.4,2.05678521]
[1735827355226,0.28922,3461.2,3461.1,0.28922]
[1735827355630,3.2078,3461.3,3461.2,0.28922]
[1735827356131,0.4764,3461.7,3461.6,0.28918]
[1735827356435,0.28917,3461.8,3461.7,0.28917]
[1735827357831,3.49696,3461.9,3461.8,0.28917]
[1735827358830,3.2078,3461.9,3461.5,1.195]
[1735827359034,0.28917,3461.8,3461.7,0.28917]
[1735827363036,0.2892,3461.5,3461.4,0.28919]
[1735827363337,0.28921,3461.4,3461.3,1.4832]
[1735827363530,0.28923,3461.1,3460.8,0.5054]
[1735827363731,0.4885,3461.3,3460.8,1.6994]
[1735827363934,0.28923,3461.2,3461.1,0.28922]
[1735827364933,0.2892,3461.5,3461.4,0.28919]
[1735827365133,0.28921,3461.4,3461.3,0.2892]
[1735827365734,0.4777,3461.7,3461.0,2.05678521]
[1735827365934,3.49696,3461.9,3461.8,0.28917]
[1735827366136,3.2078,3461.9,3461.8,0.28917]
[1735827366439,3.2078,3461.9,3461.8,1.48317]
[1735827367041,3.49696,3461.9,3461.8,1.194]
[1735827367741,0.2892,3461.6,3461.3,4.4018]
[1735827367942,0.2892,3461.6,3461.5,0.28918]
[1735827368334,3.2078,3461.9,3461.3,1.194]
[1735827368534,0.28917,3461.8,3461.7,0.28917]
[1735827368835,3.2078,3461.9,3461.3,1.91702]
[1735827368836,3.49697,3461.9,3461.8,0.28917]
[1735827369240,0.28919,3461.7,3461.6,0.28917]
[1735827369440,3.2078,3461.9,3461.5,0.28919]
[1735827369441,0.2892,3461.6,3461.5,0.28919]
[1735827369643,2.05678521,3461.8,3461.3,1.194]
[1735827369839,2.05678521,3461.8,3461.2,0.4883]
[1735827369840,0.28923,3461.1,3461.0,1.48322]
[1735827370138,2.05678521,3461.2,3460.6,0.4955]
[1735827370344,0.28924,3460.9,3460.7,0.28925]
[1735827370546,0.28924,3460.9,3460.4,1.194]
[1735827370837,0.28924,3460.9,3460.8,3.49705]
[1735827372040,0.4795,3461.0,3460.8,3.2078]
[1735827372244,0.72296,3461.7,3460.8,3.2078]
[1735827372438,0.7928,3461.4,3461.3,0.2892]
[1735827373348,0.5036,3461.4,3461.3,0.2892]
[1735827373637,0.28918,3461.7,3461.6,0.28917]
[1735827373839,0.9873,3461.8,3461.3,1.194]
[1735827374041,0.28919,3461.6,3461.5,0.28918]
[1735827374235,0.9873,3461.8,3461.3,1.194]
[1735827374435,0.2892,3461.5,3461.4,0.28919]
[1735827375136,0.2892,3461.5,3460.9,0.5095]
[1735827375137,5.26458521,3461.5,3460.9,0.5095]
[1735827375338,0.28923,3461.0,3460.9,0.5095]
[1735827375541,0.28923,3461.0,3460.9,0.28924]
[1735827375745,1.0051,3461.1,3460.8,3.2078]
[1735827375940,0.28924,3460.9,3460.8,3.49705]
[1735827377145,0.28924,3460.9,3460.8,3.2078]
[1735827377547,0.28924,3460.9,3460.8,3.49705]
[1735827378047,0.28925,3460.8,3460.7,1.194]
[1735827378249,0.28927,3460.7,3460.6,0.28926]
[1735827378937,0.28925,3460.9,3460.8,0.28924]
[1735827380537,4.2129,3461.1,3460.6,1.194]
[1735827380744,3.49703,3461.1,3461.0,0.28923]
[1735827381249,3.2078,3461.1,3460.6,1.194]
[1735827381443,0.28924,3461.0,3460.9,0.28923]
[1735827382441,0.80114,3461.0,3460.9,0.28923]
[1735827382647,0.28926,3460.8,3460.7,0.28925]
[1735827383354,0.5119,3461.0,3460.5,1.194]
[1735827383647,0.28927,3460.7,3460.6,0.28926]
[1735827384045,0.5178,3460.9,3460.5,1.48327]
[1735827384046,0.28927,3460.6,3460.5,1.48327]
[1735827384548,0.28931,3460.1,3459.7,4.54505296]
[1735827384844,0.28932,3460.0,3459.9,0.28932]
[1735827385046,3.32673132,3460.6,3460.0,0.28931]
[1735827385047,0.28931,3460.1,3460.0,0.28931]
[1735827385546,0.54677611,3460.6,3460.0,2.05678521]
[1735827385752,0.28927,3460.6,3460.5,0.28927]
[1735827385947,0.28927,3460.6,3460.1,0.72327]
[1735827385948,3.2078,3460.7,3460.0,2.05678521]
[1735827386247,0.28931,3460.2,3460.1,0.28929]
[1735827386642,0.28932,3460.0,3459.9,0.28932]
[1735827387251,0.4906,3460.1,3459.8,0.28933]
[1735827387252,0.28932,3459.9,3459.8,0.28933]
[1735827387451,0.4906,3460.1,3459.7,0.28934]
[1735827387452,0.28934,3459.8,3459.7,0.28934]
[1735827387745,0.28934,3459.7,3459.6,3.2078]
[1735827388148,3.2078,3459.9,3459.3,0.28936]
[1735827388358,0.28938,3459.3,3459.2,0.28938]
[1735827388656,0.28939,3459.1,3459.0,4.54505296]
[1735827388952,0.28939,3459.1,3459.0,4.83445296]
[1735827389956,0.28939,3459.1,3459.0,0.2894]
[1735827390454,0.4906,3459.4,3458.9,1.0372]
[1735827390756,0.28939,3459.2,3459.1,0.28938]
[1735827390950,0.2894,3459.1,3459.0,0.28939]
[1735827391255,0.28939,3459.2,3459.1,0.28938]
[1735827391746,0.2894,3459.0,3458.9,0.8075]
[1735827391954,0.28941,3458.9,3458.8,1.48341]
[1735827392253,0.28941,3458.9,3458.8,1.194]
[1735827392547,0.28942,3458.8,3458.6,0.28942]
[1735827392749,0.28945,3458.4,3458.3,0.4712]
[1735827392953,0.28948,3458.1,3457.9,6.21025296]
[1735827393156,0.28948,3458.1,3457.9,1.6652]
[1735827393751,0.28947,3458.2,3458.0,0.28948]
[1735827394749,0.28946,3458.3,3457.9,1.6652]
[1735827394954,3.6851,3458.7,3458.0,2.05678521]
[1735827395454,0.28945,3458.4,3458.0,2.05678521]
[1735827395653,3.6851,3458.7,3458.0,2.05678521]
[1735827395850,0.28944,3458.5,3458.0,2.05678521]
[1735827396049,3.6851,3458.7,3458.0,2.05678521]
[1735827396452,0.28946,3458.4,3458.3,0.28946]
[1735827396655,0.28946,3458.3,3458.2,0.28946]
[1735827397361,0.5205,3458.6,3457.9,1.6652]
[1735827397549,0.5205,3458.6,3457.9,0.4712]
[1735827397550,3.2078,3458.3,3457.9,0.4712]
[1735827397760,0.28949,3457.9,3457.8,3.2078]
[1735827399360,0.28953,3457.5,3457.4,4.8721]
[1735827399561,0.28953,3457.5,3457.4,5.16163]
[1735827399850,0.5205,3457.8,3457.4,0.4703]
[1735827400058,0.5205,3457.8,3457.1,2.05678521]
[1735827400255,0.28954,3457.3,3457.2,1.48454]
[1735827400565,0.28952,3457.6,3457.2,1.195]
[1735827400856,0.5024,3457.7,3457.4,0.28953]
[1735827401055,0.28953,3457.5,3457.4,0.28953]
[1735827401461,0.2895,3457.9,3457.6,0.28952]
[1735827401661,0.5089,3458.0,3457.3,0.4912]
[1735827401853,0.5089,3458.0,3457.4,2.05678521]
[1735827402155,0.2895,3457.9,3457.4,2.05678521]
[1735827402352,0.2895,3457.8,3457.7,0.2895]
[1735827403258,0.2895,3457.9,3457.8,0.2895]
[1735827403461,0.2895,3457.8,3457.7,0.2895]
[1735827403755,0.28951,3457.8,3457.7,0.2895]
[1735827403962,0.2895,3457.8,3457.7,0.2895]
[1735827404154,0.5089,3458.0,3457.7,0.2895]
[1735827404354,0.2895,3457.9,3457.8,0.2895]
[1735827405161,0.5089,3458.0,3457.5,0.4984]
[1735827405357,0.2895,3457.9,3457.8,0.2895]
[1735827405657,0.5089,3458.0,3457.5,0.4984]
[1735827406162,0.28952,3457.6,3457.5,0.4984]
[1735827406661,0.28952,3457.6,3457.5,0.28953]
[1735827407760,0.28952,3457.6,3457.5,0.28952]
[1735827408563,0.5089,3458.0,3457.9,0.28949]
[1735827408754,3.2078,3458.1,3457.6,0.4862]
[1735827409064,3.49727,3458.1,3458.0,0.28948]
[1735827409363,0.28949,3458.0,3457.9,0.28949]
[1735827409561,0.28949,3458.0,3457.7,1.6822]
[1735827409562,3.49728,3458.1,3458.0,0.28948]
[1735827409963,0.2895,3457.8,3457.7,1.9717]
[1735827410264,0.2895,3457.9,3457.8,0.28949]
[1735827410965,0.28949,3458.0,3457.9,0.28949]
[1735827411467,3.2078,3458.1,3457.7,1.6822]
[1735827411761,0.2895,3457.9,3457.8,0.2895]
[1735827413766,0.28949,3458.0,3457.9,0.28948]
[1735827413959,4.00537,3458.2,3458.1,0.28947]
[1735827414859,3.2078,3458.2,3458.1,0.28947]
[1735827415566,3.2078,3458.6,3458.5,0.28944]
[1735827415759,3.49723,3458.6,3458.5,0.28944]
[1735827416464,0.28944,3458.5,3458.4,1.195]
[1735827416665,0.28945,3458.4,3458.3,0.28945]
[1735827417366,0.28945,3458.5,3458.4,0.28944]
[1735827417562,0.28946,3458.4,3458.3,0.28945]
[1735827418369,3.2078,3458.6,3457.9,1.195]
[1735827418674,0.28949,3458.0,3457.9,0.28949]
[1735827418883,0.28949,3458.0,3457.9,1.48349]
[1735827420173,0.28949,3458.0,3457.9,0.28949]
[1735827420669,1.4687,3458.1,3457.7,0.28951]
[1735827420670,0.2895,3457.8,3457.7,0.28951]
[1735827421474,0.2895,3457.8,3457.4,0.4628]
[1735827421475,2.01500795,3458.1,3457.5,1.194]
[1735827421676,0.2895,3457.9,3457.8,0.28949]
[1735827422777,0.28951,3457.8,3457.7,0.2895]
[1735827423279,0.28952,3457.6,3457.5,0.28953]
[1735827423479,0.28953,3457.4,3457.3,3.49734]
[1735827423778,0.28953,3457.4,3457.3,3.2078]
[1735827423981,0.28955,3457.2,3457.1,1.6891]
[1735827424486,0.28956,3457.2,3457.1,0.28955]
[1735827425674,0.28956,3457.1,3457.0,0.78466]
[1735827426582,0.28957,3457.0,3456.9,3.2078]
[1735827426782,0.28959,3456.7,3456.6,0.2896]
[1735827427279,0.28959,3456.8,3456.7,0.28959]
[1735827427675,0.4903,3456.9,3456.8,0.28958]
[1735827427882,0.28958,3457.0,3456.5,1.194]
[1735827428074,0.28958,3457.0,3456.9,0.28957]
[1735827430280,0.28959,3456.8,3456.7,0.28959]
[1735827431383,3.6981,3457.2,3456.5,1.194]
[1735827431584,0.28957,3457.0,3456.9,0.28957]
[1735827432081,3.6981,3457.2,3456.5,1.194]
[1735827432082,0.28959,3456.8,3456.5,1.194]
[1735827432283,0.28959,3456.8,3456.7,0.28959]
[1735827432485,4.42199,3457.2,3456.8,0.28957]
[1735827432486,0.28958,3456.9,3456.8,0.28957]
[1735827432781,0.2896,3456.7,3456.6,0.28959]
[1735827433188,0.28958,3456.9,3456.8,0.28958]
[1735827433587,3.6981,3457.2,3456.4,0.72405]
[1735827433788,0.28959,3456.8,3456.7,0.28959]
[1735827434087,3.6981,3457.2,3456.5,2.05678521]
[1735827434381,0.4903,3457.2,3456.5,2.05678521]
[1735827434578,0.28961,3456.6,3456.5,1.4846]
[1735827434778,0.7239,3457.1,3456.5,1.195]
[1735827434980,0.7239,3457.1,3456.6,0.28959]
[1735827434981,0.28959,3456.7,3456.6,0.28959]
[1735827435587,3.2078,3456.9,3456.5,1.195]
[1735827435985,2.05678521,3457.0,3456.5,1.195]
[1735827436290,0.2896,3456.7,3456.6,0.28959]
[1735827436788,0.28959,3456.8,3456.7,0.28958]
[1735827443889,0.4903,3457.2,3456.6,3.2078]
[1735827444092,0.4903,3457.2,3457.1,0.28956]
[1735827445794,0.4973,3457.3,3457.2,0.28955]
[1735827447492,0.504,3457.4,3456.8,3.27793521]
[1735827447493,0.4982,3457.5,3457.4,0.28953]
[1735827447792,0.5107,3457.8,3457.7,0.2895]
[1735827448896,0.5107,3457.8,3457.5,0.4804]
[1735827449098,0.28953,3457.5,3457.4,1.48453]
[1735827449694,0.80213,3457.5,3457.4,1.48453]
[1735827450493,0.5126,3457.5,3457.4,1.48453]
[1735827450700,0.5107,3457.8,3457.4,1.195]
[1735827450899,0.28951,3457.7,3457.6,0.28951]
[1735827451497,1.0044,3457.8,3457.7,0.28951]
[1735827451691,0.5107,3457.8,3457.7,0.28951]
[1735827452197,3.2078,3457.9,3457.8,0.2895]
[1735827452399,0.28949,3458.0,3457.9,0.28949]
[1735827453000,0.9647,3458.1,3458.0,0.28948]
[1735827453295,0.28946,3458.4,3458.3,0.28945]
[1735827453697,0.28947,3458.3,3458.2,0.28946]
[1735827455404,2.53688521,3458.5,3457.8,3.2078]
[1735827455603,0.4801,3458.5,3458.4,0.28945]
[1735827455902,0.76954,3458.5,3458.4,0.28945]
[1735827456102,3.49723,3458.7,3458.6,0.28943]
[1735827456301,3.2078,3458.7,3458.6,0.28943]
[1735827456698,0.497,3459.1,3458.6,0.28943]
[1735827456898,0.497,3459.1,3459.0,0.2894]
[1735827457104,0.497,3459.1,3458.8,1.194]
[1735827457405,0.28941,3458.9,3458.8,1.194]
[1735827457705,2.55378521,3459.1,3458.3,0.28945]
[1735827457706,0.28945,3458.4,3458.3,0.28945]
[1735827458606,2.05678521,3458.6,3458.2,1.194]
[1735827458807,2.82124521,3458.3,3458.2,1.194]
[1735827459505,0.2895,3457.9,3457.8,0.28949]
[1735827460299,6.46324521,3458.3,3457.7,0.4723]
[1735827460500,0.28949,3458.0,3457.9,0.28949]
[1735827460696,5.73958521,3458.3,3457.7,0.4723]
[1735827460908,3.97227,3458.3,3458.2,0.28947]
[1735827462204,3.97227,3458.3,3457.7,0.4723]
[1735827462205,3.6828,3458.3,3457.7,0.4723]
[1735827462402,2.05678521,3458.0,3457.4,3.2078]
[1735827462605,2.05678521,3457.6,3457.4,3.2078]
[1735827462901,0.28952,3457.6,3457.5,0.28953]
[1735827464409,0.28952,3457.6,3457.4,3.2078]
[1735827464410,0.28954,3457.4,3457.3,0.28953]
[1735827465203,2.05678521,3457.6,3457.2,0.5106]
[1735827465407,2.05678521,3457.6,3457.1,1.194]
[1735827465408,0.28955,3457.2,3457.1,1.194]
[1735827466309,0.28957,3457.0,3456.9,3.2078]
[1735827466504,2.34635521,3457.0,3456.9,3.2078]
[1735827467105,0.28957,3457.0,3456.9,3.2078]
[1735827467911,0.28959,3456.7,3456.6,0.4979]
[1735827468210,0.28959,3456.7,3456.6,0.7875]
[1735827468511,3.49739,3456.7,3456.6,0.7875]
[1735827469205,3.49739,3456.7,3456.6,0.4979]
[1735827469705,3.49739,3456.7,3456.6,0.7875]
[1735827469909,2.05678521,3457.0,3456.6,0.4979]
[1735827470108,0.28959,3456.7,3456.6,0.78749]
[1735827471006,2.05678521,3457.0,3456.4,0.28961]
[1735827471007,0.28961,3456.5,3456.4,0.28961]
[1735827471403,0.28962,3456.4,3456.3,1.48362]
[1735827472027,2.62788521,3456.7,3456.1,0.28964]
[1735827472028,0.28963,3456.2,3456.1,0.28964]
[1735827472205,1.0731,3456.3,3455.9,0.5675]
[1735827472403,0.28965,3456.1,3456.0,0.28965]
[1735827472806,1.0731,3456.3,3455.6,2.05678521]
[1735827473007,1.0731,3456.3,3455.5,3.2078]
[1735827473008,0.28968,3455.6,3455.5,3.49749]
[1735827473210,0.5424,3456.0,3455.5,3.2078]
[1735827473414,0.83206,3456.0,3455.8,0.28966]
[1735827473915,0.28966,3455.9,3455.8,0.28966]
[1735827474617,0.28967,3455.8,3455.7,0.28967]
[1735827475107,0.28966,3455.9,3455.8,0.28966]
[1735827475410,0.83206,3456.0,3455.9,0.28966]
[1735827475616,0.28966,3455.9,3455.8,0.28966]
[1735827477212,1.0731,3456.3,3455.5,3.2078]
[1735827477410,0.28964,3456.2,3456.1,0.28964]
[1735827477611,3.2078,3456.4,3456.3,0.28963]
[1735827477810,3.49742,3456.4,3456.3,0.28963]
[1735827478123,0.28962,3456.4,3456.3,0.28963]
[1735827478417,0.28962,3456.4,3456.3,41.08963]
[1735827478917,0.28962,3456.4,3456.3,0.28963]
[1735827479609,0.28962,3456.4,3456.1,1.1197]
[1735827479610,2.05678521,3456.7,3455.9,3.2078]
[1735827479819,0.28966,3456.0,3455.9,1.194]
[1735827480009,0.28967,3455.8,3455.7,0.86797]
[1735827482713,0.28967,3455.8,3455.0,0.542]
[1735827482714,0.28976,3454.8,3454.7,0.28975]
[1735827482916,2.05678521,3455.0,3454.3,5.65857772]
[1735827483109,3.49758,3454.4,3454.3,6.30407772]
[1735827483922,3.49758,3454.4,3454.3,4.53327772]
[1735827484222,0.28981,3454.1,3454.0,1.7425]
[1735827484424,0.28981,3454.1,3454.0,0.5485]
[1735827484718,0.28982,3454.0,3453.9,1.194]
[1735827485117,2.05678521,3454.2,3453.7,3.2078]
[1735827485319,0.28984,3453.8,3453.7,3.49764]
[1735827485515,0.28984,3453.8,3453.7,3.2078]
[1735827486217,0.5624,3454.0,3453.3,1.0863]
[1735827486417,0.28987,3453.4,3453.3,2.57017]
[1735827486620,0.28987,3453.4,3453.3,2.57018]
[1735827486820,0.5796,3453.7,3453.3,2.2803]
[1735827487117,0.28983,3453.9,3453.7,0.28984]
[1735827487529,3.2078,3454.0,3453.6,2.05678521]
[1735827487719,5.26458521,3454.0,3453.3,1.0863]
[1735827488025,0.28986,3453.6,3453.4,0.28986]
[1735827488217,0.28986,3453.5,3453.4,0.28987]
[1735827488521,5.26458521,3454.0,3453.3,2.2803]
[1735827488720,0.28987,3453.4,3453.3,1.7489]
[1735827489516,0.28987,3453.4,3453.3,0.5549]
[1735827490222,0.28987,3453.5,3453.3,0.84477]
[1735827490418,0.28987,3453.5,3453.4,0.28987]
[1735827490819,0.28986,3453.6,3453.5,0.28986]
[1735827491220,0.28986,3453.5,3453.4,0.28987]
[1735827491616,0.28986,3453.5,3453.4,41.08987]
[1735827492423,0.28986,3453.5,3453.4,40.8]
[1735827492926,0.28986,3453.5,3453.4,41.08987]
[1735827493320,3.49766,3453.6,3453.5,0.28986]
[1735827493521,0.28986,3453.5,3453.4,41.08987]
[1735827494022,0.28986,3453.5,3453.4,40.8]
[1735827494620,0.28986,3453.5,3453.0,2.05678521]
[1735827494621,3.2078,3453.6,3452.5,2.05678521]
[1735827494827,0.2899,3453.1,3453.0,0.2899]
[1735827495016,2.05678521,3453.4,3452.8,3.2078]
[1735827495217,0.28991,3452.9,3452.8,3.2078]
[1735827495818,2.05678521,3453.7,3452.8,3.2078]
[1735827496022,1.83478,3453.9,3452.8,5.26458521]
[1735827496226,2.05678521,3453.7,3452.8,3.2078]
[1735827496426,2.78142521,3453.7,3452.6,1.194]
[1735827496628,2.78142521,3453.7,3453.1,0.28989]
[1735827496629,0.28989,3453.2,3453.1,0.28989]
[1735827496828,2.78142521,3453.7,3453.0,0.2899]
[1735827497031,0.2899,3453.1,3453.0,0.2899]
[1735827497232,0.28989,3453.1,3453.0,40.8]
[1735827497425,0.28989,3453.1,3453.0,41.0899]
[1735827497929,3.2078,3453.6,3453.0,40.8]
[1735827498139,3.2078,3453.6,3453.5,0.28986]
[1735827498436,0.28981,3454.1,3454.0,0.28982]
[1735827498727,2.05678521,3454.3,3453.7,3.2078]
[1735827498930,0.28984,3453.8,3453.7,3.49764]
[1735827499331,0.5411,3454.2,3453.7,3.2078]
[1735827499533,0.28985,3453.6,3453.5,1.48486]
[1735827500426,0.5549,3453.9,3453.5,1.195]
[1735827500623,0.84473,3453.9,3453.8,0.28984]
[1735827500826,3.49761,3454.1,3454.0,0.28982]
[1735827501021,0.28982,3454.0,3453.9,0.28982]
[1735827501228,3.2078,3454.1,3453.5,1.195]
[1735827501431,0.28983,3453.9,3453.8,0.28983]
[1735827501933,0.28985,3453.7,3453.6,0.28984]
[1735827502234,2.05678521,3454.0,3453.5,1.195]
[1735827502430,0.28987,3453.4,3453.3,3.49767]
[1735827502729,0.28987,3453.5,3453.4,0.28986]
[1735827503334,0.72457,3453.9,3453.2,1.195]
[1735827503631,0.28987,3453.5,3453.4,0.28986]
[1735827503827,0.72457,3453.9,3453.4,0.28986]
[1735827504028,0.28986,3453.6,3453.5,0.28986]
[1735827504626,2.05678521,3454.0,3453.3,3.2078]
[1735827504837,3.49762,3454.1,3454.0,0.28982]
[1735827505030,0.28982,3454.1,3454.0,0.28982]
[1735827505523,1.096,3454.2,3453.9,1.195]
[1735827505729,0.28979,3454.4,3454.3,0.28979]
[1735827506634,3.2078,3454.5,3453.9,1.91957]
[1735827506833,0.2898,3454.3,3454.2,0.28979]
[1735827507135,3.2078,3454.5,3453.9,1.91957]
[1735827507434,0.28979,3454.4,3454.3,0.28978]
[1735827507830,3.2078,3454.5,3453.9,1.195]
[1735827508035,3.2078,3454.5,3454.4,0.28978]
[1735827508638,0.85906,3454.7,3454.1,0.72452]
[1735827508937,0.5693,3454.7,3454.6,0.28977]
[1735827509137,3.2078,3455.1,3454.6,1.194]
[1735827509335,0.28974,3455.0,3454.9,0.28973]
[1735827509549,0.85242,3455.2,3455.1,0.28973]
[1735827509741,0.28973,3455.1,3455.0,0.28973]
[1735827510231,0.5627,3455.2,3454.7,0.5791]
[1735827510734,0.28973,3455.1,3455.0,0.28973]
[1735827511530,0.5627,3455.2,3455.1,0.28973]
[1735827511835,0.28971,3455.4,3455.3,0.2897]
[1735827512035,0.28971,3455.4,3455.3,1.4837]
[1735827512230,0.28971,3455.4,3455.3,1.194]
[1735827512535,0.28971,3455.4,3455.3,1.48371]
[1735827512938,0.28971,3455.4,3455.3,1.194]
[1735827513331,5.26458521,3455.5,3454.9,3.2078]
[1735827513534,3.2078,3455.0,3454.7,1.194]
[1735827513734,0.28975,3454.8,3454.7,1.194]
[1735827513936,0.28978,3454.5,3454.4,4.4018]
[1735827514138,0.28978,3454.5,3454.1,0.5838]
[1735827514139,0.28982,3454.0,3453.9,0.84142]
[1735827514529,0.2898,3454.2,3454.1,0.2898]
[1735827514734,0.8592,3454.3,3454.2,0.2898]
[1735827515036,0.5694,3454.3,3453.9,0.5516]
[1735827515242,0.5694,3454.3,3453.7,13.23218521]
[1735827515243,2.05678521,3454.2,3453.7,3.2078]
[1735827515435,0.28984,3453.8,3453.7,3.49763]
[1735827515641,0.28983,3453.9,3453.8,0.28982]
[1735827517739,0.28983,3453.9,3453.7,1.194]
[1735827517740,0.28984,3453.8,3453.7,1.48384]
[1735827518241,0.5514,3454.1,3453.7,1.194]
[1735827518437,0.28983,3454.0,3453.9,0.28982]
[1735827518639,0.5514,3454.1,3453.7,1.194]
[1735827518845,0.5694,3454.3,3454.2,0.2898]
[1735827519140,0.85919,3454.3,3454.2,0.2898]
[1735827519545,5.26458521,3454.8,3453.9,42.85678521]
[1735827519841,0.2898,3454.3,3454.2,0.2898]
[1735827520034,5.98897521,3454.8,3454.0,0.538]
[1735827520238,0.28979,3454.5,3454.4,0.28978]
[1735827520940,5.26458521,3454.8,3454.0,0.538]
[1735827521136,0.28978,3454.6,3454.5,0.28977]
[1735827521343,0.28976,3454.8,3454.7,0.28975]
[1735827521538,0.5391,3454.9,3454.0,3.7458]
[1735827521741,0.28978,3454.5,3454.4,0.28978]
[1735827522043,5.26458521,3454.8,3454.0,3.7458]
[1735827522343,0.28981,3454.2,3454.1,0.28981]
[1735827522743,0.28981,3454.1,3454.0,4.03561]
[1735827522939,0.28981,3454.1,3454.0,3.2078]
[1735827523139,0.28984,3453.8,3453.5,3.2078]
[1735827523340,0.28985,3453.7,3453.6,1.48385]
[1735827524041,0.28985,3453.7,3453.6,1.194]
[1735827524246,0.28985,3453.7,3453.6,1.48385]
[1735827524445,0.5706,3454.0,3453.6,1.194]
[1735827524748,0.28983,3454.0,3453.9,0.28982]
[1735827525254,0.81682,3454.1,3454.0,0.28982]
[1735827525748,0.5706,3454.3,3453.6,1.194]
[1735827525938,0.5706,3454.3,3454.2,0.2898]
[1735827526142,0.527,3454.6,3454.5,0.28978]
[1735827526343,3.49755,3454.8,3454.7,0.28976]
[1735827527141,5.26458521,3454.8,3454.4,1.194]
[1735827527348,0.28978,3454.6,3454.5,0.28977]
[1735827528046,0.5613,3454.7,3454.4,1.194]
[1735827528248,0.5613,3454.7,3454.6,0.28977]
[1735827528553,0.85106,3454.7,3454.6,0.28977]
[1735827529449,0.5613,3454.7,3454.6,0.28977]
[1735827529644,0.28975,3454.9,3454.8,0.28974]
[1735827533044,0.5443,3455.0,3454.7,1.194]
[1735827533045,0.28975,3454.8,3454.7,1.194]
[1735827533251,3.49755,3454.8,3454.7,1.194]
[1735827533448,3.2078,3454.8,3454.3,3.2078]
[1735827533653,0.28977,3454.7,3454.6,0.28976]
[1735827534552,0.5443,3455.0,3454.3,3.2078]
[1735827534758,0.28977,3454.7,3454.6,0.28976]
[1735827537164,3.2078,3454.7,3454.2,0.5676]
[1735827537359,0.28981,3454.1,3454.0,1.48381]
[1735827537953,0.28981,3454.1,3454.0,1.194]
[1735827538859,0.28981,3454.1,3454.0,1.48382]
[1735827540153,0.28981,3454.1,3454.0,1.194]
[1735827542462,0.28983,3453.9,3453.8,3.2078]
[1735827543469,3.2078,3454.0,3453.6,0.28985]
[1735827543770,0.28984,3453.7,3453.6,0.28985]
[1735827544370,0.5817,3453.9,3453.4,1.193]
[1735827544568,0.28986,3453.5,3453.4,1.48286]
[1735827544765,0.28986,3453.5,3453.4,1.193]
[1735827545174,0.5603,3453.6,3453.2,3.2078]
[1735827545367,0.5603,3453.6,3453.2,4.4018]
[1735827545368,0.28988,3453.3,3453.2,4.4018]
[1735827545558,0.28988,3453.3,3453.2,3.49769]
[1735827547481,0.28988,3453.3,3453.2,3.2078]
[1735827551583,0.2899,3453.0,3452.9,0.28991]
[1735827551787,4.49275,3453.6,3453.1,0.28988]
[1735827552082,3.2078,3454.1,3453.8,0.28982]
[1735827552282,0.28985,3453.7,3453.6,0.28984]
[1735827552484,5.98913521,3454.1,3453.5,1.194]
[1735827552485,0.28985,3453.6,3453.5,1.194]
[1735827553279,0.85315,3453.6,3453.5,1.194]
[1735827553477,0.5633,3453.6,3453.2,0.5309]
[1735827553673,0.72468,3453.4,3453.0,1.194]
[1735827553877,0.28989,3453.1,3453.0,1.194]
[1735827554778,0.28989,3453.1,3453.0,1.4839]
[1735827554979,0.28989,3453.1,3453.0,1.194]
[1735827555680,0.28989,3453.1,3453.0,1.4839]
[1735827555983,0.28989,3453.1,3453.0,1.194]
[1735827556183,0.28989,3453.1,3453.0,1.4839]
[1735827556882,0.28989,3453.1,3453.0,1.194]
[1735827560579,0.72468,3453.4,3452.9,0.28991]
[1735827560786,0.2899,3453.0,3452.9,0.28991]
[1735827560984,1.0098,3453.5,3452.8,1.9188]
[1735827561183,3.49765,3453.7,3453.6,0.28985]
[1735827561681,0.28985,3453.7,3453.6,0.28985]
[1735827561873,0.28985,3453.7,3453.6,1.24335]
[1735827563083,0.28985,3453.7,3453.6,0.487]
[1735827563286,0.28985,3453.6,3453.5,1.194]
[1735827563589,1.28255,3453.6,3453.5,1.194]
[1735827564083,1.75565,3453.6,3453.5,1.194]
[1735827564285,1.4658,3453.6,3453.2,0.4948]
[1735827564483,0.28988,3453.3,3453.2,0.4948]